bitfinex-derivatives/quotes_BNBF0:USTF0_20250406
["timestamp","ask_amount","ask_price","bid_price","bid_amount"]
[1743899217268,0.336706,593.99,593.06,0.29327852]
[1743899217469,0.336706,593.99,593.05,0.33723969]
[1743899217674,0.29313656,593.98,593.06,0.29330756]
[1743899220374,0.336706,593.99,593.06,0.29330756]
[1743899220874,0.29313533,593.98,593.06,0.29330756]
[1743899222177,0.29313533,593.98,593.05,0.33723969]
[1743899222376,0.29313533,593.98,593.06,0.293277]
[1743899224479,0.606,593.97,593.06,0.293277]
[1743899225781,0.606,593.97,593.05,0.33723969]
[1743899225979,0.606,593.97,593.06,0.29327694]
[1743899226682,0.29313039,593.96,593.06,0.29327694]
[1743899227377,0.29313039,593.96,593.05,0.33723969]
[1743899227581,0.29313039,593.96,593.06,0.2932183]
[1743899229383,0.606,593.97,593.06,0.2932183]
[1743899229883,0.89911804,593.97,593.07,0.29316852]
[1743899230082,0.89911804,593.97,593.06,0.29316852]
[1743899230378,0.89911804,593.97,593.07,0.29316852]
[1743899230581,0.89911804,593.97,593.06,0.29316852]
[1743899230882,0.89911804,593.97,593.05,0.33723969]
[1743899231084,0.89911804,593.97,593.06,0.29315947]
[1743899232386,0.606,593.97,593.06,0.29315947]
[1743899232886,0.89911804,593.97,593.06,0.29315947]
[1743899234889,0.89911804,593.97,593.05,0.33723969]
[1743899235090,0.89911804,593.97,593.06,0.29315733]
[1743899235389,0.606,593.97,593.06,0.29315733]
[1743899235586,0.69,593.96,593.06,0.29315733]
[1743899242696,0.69,593.96,593.05,0.33723969]
[1743899242890,0.69,593.96,593.06,0.29296819]
[1743899244395,0.69,593.96,593.05,0.33723969]
[1743899244595,0.69,593.96,593.07,0.2929897]
[1743899244897,0.69,593.96,593.08,0.2929897]
[1743899245096,0.69,593.96,593.06,0.2929897]
[1743899249898,0.69,593.96,593.07,1.25898521]
[1743899250095,0.69,593.96,593.08,0.2929897]
[1743899251200,0.69,593.96,593.07,1.25898521]
[1743899251401,0.69,593.96,593.08,0.29308319]
[1743899254105,0.814,593.95,593.08,0.29308319]
[1743899254404,0.814,593.95,593.09,1.25898521]
[1743899254605,0.814,593.95,593.1,0.29308319]
[1743899256303,0.814,593.95,593.09,1.25898521]
[1743899256599,0.814,593.95,593.1,1.55203852]
[1743899256804,0.814,593.95,593.11,0.29305331]
[1743899257905,0.814,593.95,593.1,1.25898521]
[1743899258101,0.814,593.95,593.11,0.29305415]
[1743899258907,0.814,593.95,593.11,1.55203936]
[1743899259101,0.814,593.95,593.12,0.29305415]
[1743899259605,0.814,593.95,593.13,0.29303009]
[1743899259802,0.814,593.95,593.12,0.29303009]
[1743899260004,0.814,593.95,593.13,0.29303009]
[1743899260205,0.814,593.95,593.12,0.29303009]
[1743899260407,0.814,593.95,593.13,0.29303009]
[1743899260602,0.814,593.95,593.12,0.29303009]
[1743899261804,0.814,593.95,593.13,0.29303009]
[1743899262003,0.814,593.95,593.06,0.29303009]
[1743899262202,0.814,593.95,593.07,0.29303009]
[1743899262507,0.814,593.95,593.06,0.29303009]
[1743899262710,0.814,593.95,593.07,0.29303009]
[1743899263008,0.814,593.95,593.06,0.29303009]
[1743899263307,0.814,593.95,593.07,0.29303009]
[1743899263507,0.814,593.95,593.06,0.29303009]
[1743899269416,0.814,593.95,593.05,0.33723969]
[1743899269714,0.814,593.95,593.06,0.29293068]
[1743899272617,0.814,593.95,593.13,1.25898521]
[1743899272817,0.814,593.95,593.14,0.29293068]
[1743899275022,0.814,593.95,593.13,1.25898521]
[1743899275218,0.814,593.95,593.15,0.29293086]
[1743899275421,0.814,593.95,593.16,0.29293086]
[1743899275621,0.814,593.95,593.14,0.29293086]
[1743899275822,0.814,593.95,593.15,0.29293086]
[1743899276023,0.814,593.95,593.16,0.29293086]
[1743899276318,0.814,593.95,593.17,0.29293086]
[1743899276521,0.814,593.95,593.12,0.29293086]
[1743899276722,0.814,593.95,593.13,0.29293086]
[1743899276922,0.814,593.95,593.12,0.29293086]
[1743899277322,0.814,593.95,593.1,0.29293086]
[1743899278924,0.814,593.95,593.13,1.25898521]
[1743899279125,0.814,593.95,593.14,0.29293086]
[1743899280927,0.814,593.95,593.13,1.25898521]
[1743899281128,0.814,593.95,593.14,0.29292351]
[1743899282230,0.814,593.95,593.13,1.25898521]
[1743899282529,0.814,593.95,593.14,0.29291122]
[1743899282726,0.814,593.95,593.13,1.25898521]
[1743899282931,0.814,593.95,593.14,0.29291289]
[1743899285933,0.814,593.95,593.14,1.5518981]
[1743899286130,0.814,593.95,593.15,0.29291289]
[1743899287332,0.814,593.95,593.14,1.25898521]
[1743899287536,0.814,593.95,593.15,0.29290577]
[1743899289035,0.814,593.95,593.15,1.55189098]
[1743899289233,0.814,593.95,593.16,0.29290577]
[1743899290040,0.814,593.95,593.15,1.25898521]
[1743899290239,0.814,593.95,593.16,0.29290419]
[1743899291339,0.814,593.95,593.16,1.5518894]
[1743899291640,0.814,593.95,593.17,0.29290419]
[1743899292340,0.814,593.95,593.16,1.25898521]
[1743899292640,0.814,593.95,593.17,0.29293046]
[1743899293741,1.42,593.95,593.17,0.29293046]
[1743899297148,1.42,593.95,593.2,1.25898521]
[1743899297346,1.42,593.95,593.21,0.29293046]
[1743899298946,1.42,593.95,593.2,1.25898521]
[1743899299145,1.42,593.95,593.22,0.29292974]
[1743899299342,1.42,593.95,593.23,0.29292974]
[1743899299548,1.42,593.95,593.21,0.29292974]
[1743899299745,1.42,593.95,593.22,0.29292974]
[1743899299940,1.42,593.95,593.21,0.29292974]
[1743899300342,1.42,593.95,593.16,0.29292974]
[1743899300546,1.42,593.95,593.17,0.29292974]
[1743899300747,1.42,593.95,593.16,0.29292974]
[1743899301047,1.42,593.95,593.17,0.29292974]
[1743899301247,1.42,593.95,593.16,0.29292974]
[1743899301443,1.42,593.95,593.17,0.29292974]
[1743899301647,1.42,593.95,593.18,0.29292974]
[1743899301951,1.42,593.95,593.19,0.29292974]
[1743899302143,1.42,593.95,593.16,0.29292974]
[1743899302345,1.42,593.95,593.17,0.29292974]
[1743899303850,1.42,593.95,593.16,1.25898521]
[1743899304048,1.42,593.95,593.17,0.29293275]
[1743899310058,1.42,593.95,593.2,1.25898521]
[1743899310260,1.42,593.95,593.21,0.29293275]
[1743899310558,1.42,593.95,593.2,1.25898521]
[1743899310758,1.42,593.95,593.21,0.29293221]
[1743899312055,1.42,593.95,593.2,1.25898521]
[1743899312259,1.42,593.95,593.21,0.29295816]
[1743899315561,1.42,593.95,593.22,0.29298343]
[1743899315857,1.42,593.95,593.23,0.29298343]
[1743899316058,1.42,593.95,593.24,0.29298343]
[1743899316362,1.42,593.95,593.25,0.29298343]
[1743899316562,1.42,593.95,593.21,0.29298343]
[1743899316758,1.42,593.95,593.22,0.29298343]
[1743899317061,1.42,593.95,593.21,1.25898521]
[1743899317262,1.42,593.95,593.22,0.29298393]
[1743899318664,0.606,593.95,593.22,0.29298393]
[1743899318866,0.606,593.95,593.21,0.29298393]
[1743899319063,0.606,593.95,593.23,0.29298393]
[1743899319262,0.606,593.95,593.24,0.29298393]
[1743899319465,0.606,593.95,593.21,0.29298393]
[1743899319766,0.606,593.95,593.22,0.29298393]
[1743899320065,0.606,593.95,593.23,0.29298393]
[1743899320258,0.606,593.95,593.21,0.29298393]
[1743899320460,0.606,593.95,593.22,0.29301899]
[1743899320762,0.606,593.95,593.21,0.29301899]
[1743899320964,0.606,593.95,593.22,0.29301899]
[1743899321165,0.606,593.95,593.21,0.29301899]
[1743899321962,1.447,593.95,593.18,0.29301899]
[1743899322166,1.447,593.95,593.19,0.29301899]
[1743899322466,1.447,593.95,593.18,0.29301899]
[1743899322766,1.447,593.95,593.19,0.29301899]
[1743899322961,1.447,593.95,593.2,0.29301899]
[1743899323167,1.447,593.95,593.17,0.29301899]
[1743899323360,1.447,593.95,593.21,0.29301899]
[1743899323666,1.447,593.95,593.22,0.29301899]
[1743899323866,1.447,593.95,593.17,0.29301899]
[1743899326970,1.447,593.95,593.18,0.29302827]
[1743899327269,1.447,593.95,593.19,0.29302827]
[1743899327470,1.447,593.95,593.17,0.29302827]
[1743899327670,1.447,593.95,593.18,0.29302827]
[1743899327870,1.447,593.95,593.17,0.29302827]
[1743899328070,1.447,593.95,593.18,0.29302827]
[1743899328371,1.447,593.95,593.19,0.29302827]
[1743899328568,1.447,593.95,593.17,0.29302827]
[1743899329170,1.447,593.95,593.16,0.29302827]
[1743899329365,1.447,593.95,593.17,0.29302827]
[1743899329570,1.447,593.95,593.16,0.29302827]
[1743899329771,1.447,593.95,593.17,0.29302827]
[1743899329973,1.447,593.95,593.16,0.29302827]
[1743899330171,1.447,593.95,593.18,0.29302827]
[1743899330372,1.447,593.95,593.19,0.29302827]
[1743899330571,1.447,593.95,593.16,0.29302827]
[1743899331773,1.447,593.95,593.15,1.25898521]
[1743899332069,1.447,593.95,593.16,0.29302374]
[1743899334076,1.447,593.95,593.15,1.25898521]
[1743899334278,1.447,593.95,593.16,0.29302321]
[1743899335173,1.447,593.95,593.07,0.29302321]
[1743899335375,1.447,593.95,593.08,0.29302321]
[1743899335678,1.447,593.95,593.09,0.29302321]
[1743899335879,1.447,593.95,593.07,0.29302321]
[1743899336079,1.447,593.95,593.08,0.29302321]
[1743899336273,1.447,593.95,593.07,0.29302321]
[1743899336474,1.447,593.95,593.08,0.29302321]
[1743899336774,1.447,593.95,593.09,0.29302321]
[1743899337074,1.447,593.95,593.1,0.29302321]
[1743899337273,1.447,593.95,593.06,0.29302321]
[1743899337776,0.29313039,593.94,593.06,0.29302321]
[1743899338174,0.29313039,593.94,593.05,0.33723969]
[1743899338379,0.29313039,593.94,593.06,0.2930788]
[1743899340481,1.447,593.95,593.06,0.2930788]
[1743899340781,0.29313533,593.93,593.06,0.2930788]
[1743899341282,0.29313533,593.93,593.05,0.33723969]
[1743899341482,0.29313533,593.93,593.06,0.29308146]
[1743899342382,0.29313533,593.93,593.05,0.33723969]
[1743899343480,0.606,593.95,593.05,0.33723969]
[1743899343782,0.29315138,593.92,593.05,0.33723969]
[1743899345482,0.914,593.91,593.05,0.33723969]
[1743899352289,0.914,593.91,593.06,0.29313949]
[1743899352791,0.2931452,593.9,593.06,0.29313949]
[1743899353391,0.2931452,593.9,593.05,0.33723969]
[1743899353587,0.2931452,593.9,593.07,0.29314311]
[1743899353793,0.2931452,593.9,593.08,0.29314311]
[1743899353986,0.2931452,593.9,593.09,0.29314311]
[1743899354192,0.2931452,593.9,593.06,0.29314311]
[1743899354392,0.2931452,593.9,593.07,0.29314311]
[1743899354592,0.2931452,593.9,593.06,0.29314311]
[1743899355493,0.914,593.91,593.06,0.29314311]
[1743899355795,0.2931452,593.9,593.06,0.29314311]
[1743899355991,0.9621452,593.9,593.06,0.29314311]
[1743899356191,0.9621452,593.9,593.07,0.29322028]
[1743899356391,0.9621452,593.9,593.08,0.29322028]
[1743899356591,0.9621452,593.9,593.09,0.29322028]
[1743899356791,0.9621452,593.9,593.06,0.29322028]
[1743899356990,0.9621452,593.9,593.07,0.29322028]
[1743899357191,0.9621452,593.9,593.05,0.33723969]
[1743899357192,0.9621452,593.9,593.06,0.29322028]
[1743899357690,0.9621452,593.9,593.05,0.33723969]
[1743899357895,0.9621452,593.9,593.07,0.29321995]
[1743899358093,0.9621452,593.9,593.08,0.29321995]
[1743899358396,0.9621452,593.9,593.05,0.33723969]
[1743899358589,0.9621452,593.9,593.06,0.29321037]
[1743899361497,0.669,593.9,593.06,0.29321037]
[1743899361897,0.96214644,593.9,593.06,0.29321037]
[1743899362697,0.96214644,593.9,593.05,0.33723969]
[1743899362898,0.96214644,593.9,593.06,0.2932223]
[1743899364393,0.669,593.9,593.06,0.2932223]
[1743899368396,0.669,593.9,593.05,0.33723969]
[1743899368699,0.669,593.9,593.06,0.29311469]
[1743899371102,0.669,593.9,593.05,0.33723969]
[1743899371298,0.669,593.9,593.06,0.29311473]
[1743899376006,0.669,593.9,593.05,0.33723969]
[1743899376206,0.669,593.9,593.06,0.29311495]
[1743899377310,0.929,593.89,593.06,0.29311495]
[1743899387618,0.929,593.89,593.05,0.33723969]
[1743899387918,0.929,593.89,593.06,0.29311077]
[1743899390824,0.774,593.88,593.06,0.29311077]
[1743899399630,0.929,593.87,593.06,0.29311077]
[1743899400131,0.929,593.87,593.06,1.55209598]
[1743899400330,0.929,593.87,593.07,0.29311077]
[1743899402231,0.929,593.87,593.14,1.25898521]
[1743899402431,0.929,593.87,593.15,0.29311077]
[1743899403233,0.929,593.87,593.16,0.29298624]
[1743899403527,0.929,593.87,593.17,0.29298624]
[1743899403730,0.929,593.87,593.15,0.29298624]
[1743899404031,0.929,593.87,593.14,1.25898521]
[1743899404032,0.929,593.87,593.16,0.29298624]
[1743899404331,0.929,593.87,593.17,0.29302132]
[1743899405828,0.622,593.86,593.17,0.29302132]
[1743899406332,0.622,593.86,593.14,0.29302132]
[1743899406533,0.622,593.86,593.15,0.29302132]
[1743899406733,0.622,593.86,593.14,0.29302132]
[1743899407334,0.622,593.86,593.13,1.25898521]
[1743899407630,0.622,593.86,593.14,0.29300226]
[1743899408036,0.622,593.86,593.13,0.29300226]
[1743899410736,0.622,593.86,593.12,1.25898521]
[1743899410936,0.622,593.86,593.13,0.29296955]
[1743899412338,0.622,593.86,593.12,1.25898521]
[1743899412539,0.622,593.86,593.13,0.29305545]
[1743899414141,0.622,593.86,593.12,1.25898521]
[1743899414441,0.622,593.86,593.13,0.29310564]
[1743899415740,0.622,593.86,593.12,1.25898521]
[1743899415941,0.622,593.86,593.13,0.29310883]
[1743899417446,0.622,593.86,593.14,0.29310431]
[1743899417646,0.622,593.86,593.06,0.29310431]
[1743899418046,0.622,593.86,593.05,1.5962249]
[1743899418243,0.622,593.86,593.07,0.29309346]
[1743899418447,0.622,593.86,593.08,0.29309346]
[1743899418648,0.622,593.86,593.06,0.29309346]
[1743899418848,0.622,593.86,593.07,0.29309346]
[1743899419043,0.622,593.86,593.06,0.29309346]
[1743899419248,0.622,593.86,593.07,0.29309239]
[1743899419445,0.622,593.86,593.08,0.29309239]
[1743899419642,0.622,593.86,593.06,0.29309239]
[1743899419848,0.622,593.86,593.07,0.29309239]
[1743899420047,0.622,593.86,593.06,0.29309239]
[1743899420749,0.622,593.86,593.05,0.33723969]
[1743899420949,0.622,593.86,593.06,0.29301112]
[1743899422254,0.696,593.85,593.06,0.29301112]
[1743899427258,0.696,593.85,593.05,0.33723969]
[1743899427455,0.696,593.85,593.06,0.29307317]
[1743899433161,0.655,593.84,593.06,0.29307317]
[1743899438970,0.655,593.84,593.05,0.33723969]
[1743899439171,0.655,593.84,593.06,0.29311341]
[1743899440570,0.655,593.84,593.05,0.33723969]
[1743899440770,0.655,593.84,593.06,0.29312545]
[1743899443973,0.655,593.84,593.05,0.33723969]
[1743899444172,0.655,593.84,593.06,0.29317838]
[1743899444472,0.655,593.84,593.07,0.29317838]
[1743899444666,0.655,593.84,593.08,0.29317838]
[1743899444869,0.655,593.84,592.92,0.29317838]
[1743899445067,0.655,593.84,592.93,0.29317838]
[1743899445371,0.655,593.84,592.94,0.29317838]
[1743899445572,0.655,593.84,592.92,0.29317838]
[1743899445771,0.655,593.84,592.93,0.29317838]
[1743899445968,0.655,593.84,592.92,0.29317838]
[1743899447173,0.655,593.84,592.91,1.25898521]
[1743899447371,0.655,593.84,592.92,0.29322305]
[1743899448872,0.655,593.84,592.91,0.29322305]
[1743899449068,0.655,593.84,592.92,0.29321237]
[1743899449271,0.655,593.84,592.93,0.29321237]
[1743899449574,0.655,593.84,592.94,0.29321237]
[1743899449768,0.655,593.84,592.9,1.25898521]
[1743899449769,0.655,593.84,592.95,0.29321237]
[1743899449970,0.655,593.84,592.91,0.29321237]
[1743899450172,0.29318348,593.85,592.92,0.29321237]
[1743899450374,0.29318348,593.85,592.91,0.29321237]
[1743899450673,0.29318348,593.85,592.92,0.29321638]
[1743899450875,0.29318348,593.85,592.93,0.29321638]
[1743899451072,0.29318348,593.85,592.94,0.29321638]
[1743899451276,0.29318348,593.85,592.89,0.29321638]
[1743899451475,0.29318348,593.85,592.9,0.29321638]
[1743899451673,0.29318348,593.85,592.89,0.29321638]
[1743899451878,0.682,593.84,592.89,0.29321638]
[1743899452177,0.682,593.84,592.88,1.25898521]
[1743899452372,0.682,593.84,592.89,0.29321265]
[1743899453880,0.878,593.83,592.9,0.29321265]
[1743899454071,0.878,593.83,592.88,0.29321265]
[1743899454977,0.29319707,593.82,592.88,0.29321265]
[1743899455980,0.29319707,593.82,592.89,0.29321265]
[1743899456178,0.29319707,593.82,592.87,0.29321265]
[1743899456375,0.29319707,593.82,592.88,0.29321265]
[1743899456578,0.29319707,593.82,592.87,0.29321265]
[1743899457182,0.29319707,593.82,592.86,1.25898521]
[1743899457374,0.29319707,593.82,592.87,0.29327707]
[1743899458682,0.29319707,593.82,592.79,0.29327707]
[1743899458877,0.29319707,593.82,592.8,0.29327707]
[1743899459076,0.29319707,593.82,592.81,0.29327707]
[1743899459281,0.29319707,593.82,592.82,0.29327707]
[1743899459480,0.29319707,593.82,592.79,0.29327707]
[1743899459680,0.29319707,593.82,592.8,0.29327707]
[1743899459982,0.29319707,593.82,592.81,0.29327707]
[1743899460181,0.29319707,593.82,592.79,0.29327707]
[1743899460582,0.878,593.83,592.8,0.29333204]
[1743899460783,0.29321436,593.81,592.78,0.29321436]
[1743899460981,0.29321436,593.81,592.79,0.29333204]
[1743899463284,0.29321436,593.81,592.78,0.29321436]
[1743899463484,0.878,593.83,592.79,0.29334352]
[1743899463679,0.878,593.83,592.66,0.29334352]
[1743899463878,0.29323413,593.8,592.77,0.29323413]
[1743899464079,0.29323413,593.8,592.78,0.29334352]
[1743899464579,0.29323413,593.8,592.79,0.29334352]
[1743899464783,0.29323413,593.8,592.66,0.29334352]
[1743899464983,0.29323413,593.8,592.8,0.29334352]
[1743899465179,0.29323413,593.8,592.81,0.29334352]
[1743899465385,0.29323413,593.8,592.63,0.29334352]
[1743899465683,0.29323413,593.8,592.64,0.337473]
[1743899465879,0.29323413,593.8,592.65,0.29334352]
[1743899466083,0.29323413,593.8,592.65,0.63081082]
[1743899466287,0.29323413,593.8,592.66,0.29334352]
[1743899467787,0.29323413,593.8,592.65,1.59645251]
[1743899467989,0.29323413,593.8,592.66,0.293307]
[1743899468183,0.29323413,593.8,592.67,0.293307]
[1743899468385,0.29323413,593.8,592.68,0.293307]
[1743899468588,0.29323413,593.8,592.66,0.293307]
[1743899468789,0.29323413,593.8,592.67,0.293307]
[1743899468982,0.29323413,593.8,592.66,0.293307]
[1743899469187,0.29323413,593.8,592.67,0.293307]
[1743899469388,0.29323413,593.8,592.66,0.293307]
[1743899469585,0.878,593.83,592.66,0.293307]
[1743899469991,0.29323413,593.79,592.66,0.293307]
[1743899470891,0.29323413,593.79,592.73,1.25898521]
[1743899471086,0.29323413,593.79,592.74,0.293307]
[1743899471590,0.29323413,593.79,592.73,1.25898521]
[1743899471791,0.29323413,593.79,592.74,0.29330509]
[1743899472693,0.878,593.83,592.74,0.29330509]
[1743899472895,0.29322424,593.78,592.74,0.29330509]
[1743899473396,0.29322424,593.78,592.73,1.25898521]
[1743899473694,0.29322424,593.78,592.74,0.29330862]
[1743899474089,0.29322424,593.78,592.71,0.29330862]
[1743899474290,0.29322424,593.78,592.72,0.29330862]
[1743899474490,0.29322424,593.78,592.71,0.29330862]
[1743899474689,0.29322424,593.78,592.72,0.29330862]
[1743899474889,0.29322424,593.78,592.71,0.29330862]
[1743899475596,0.878,593.83,592.71,0.29330862]
[1743899475899,0.29322795,593.77,592.71,0.29330862]
[1743899478296,0.29322795,593.77,592.73,1.25898521]
[1743899478491,0.878,593.83,592.73,1.25898521]
[1743899478691,0.878,593.83,592.74,0.29330394]
[1743899478891,0.29322424,593.76,592.74,0.29330394]
[1743899479197,0.878,593.83,592.74,0.29330394]
[1743899480296,1.673,593.83,592.74,0.29330394]
[1743899480497,0.29322424,593.82,592.74,0.29330394]
[1743899481098,0.29322424,593.82,592.77,1.25898521]
[1743899481297,0.29322424,593.82,592.78,0.29330394]
[1743899481496,1.673,593.83,592.78,0.29330394]
[1743899481692,0.2932193,593.81,592.78,0.29330394]
[1743899482900,0.2932193,593.81,592.81,1.25898521]
[1743899483099,0.2932193,593.81,592.82,0.29330394]
[1743899484501,1.673,593.83,592.82,1.55228915]
[1743899484703,1.673,593.83,592.83,0.29330394]
[1743899484902,0.2932193,593.8,592.83,0.29330394]
[1743899485103,0.2932193,593.8,592.82,1.25898521]
[1743899485302,0.2932193,593.8,592.83,0.2933507]
[1743899486704,0.2932193,593.8,592.82,1.25898521]
[1743899486904,0.2932193,593.8,592.83,0.29335659]
[1743899487500,1.673,593.83,592.83,0.29335659]
[1743899487906,0.29321807,593.79,592.83,0.29335659]
[1743899488501,0.29321807,593.79,592.82,1.25898521]
[1743899488706,0.29321807,593.79,592.83,0.29335087]
[1743899490207,0.29321807,593.79,592.84,0.29333601]
[1743899490505,0.29321807,593.79,592.85,0.29333601]
[1743899490701,1.673,593.83,592.83,0.29333601]
[1743899490908,1.673,593.83,592.84,0.29333601]
[1743899491107,0.29321807,593.78,592.84,0.29333601]
[1743899491402,0.29321807,593.78,592.85,0.29331895]
[1743899491604,0.29321807,593.78,592.77,1.25898521]
[1743899491605,0.29321807,593.78,592.78,0.29331895]
[1743899491802,0.29321807,593.78,592.79,0.29331895]
[1743899492004,0.29321807,593.78,592.78,0.29331895]
[1743899493502,0.795,593.83,592.78,0.29331895]
[1743899493909,0.29322424,593.77,592.78,0.29331895]
[1743899494604,0.29322424,593.77,592.78,1.55230416]
[1743899494804,0.29322424,593.77,592.79,0.29331895]
[1743899495510,0.825,593.76,592.79,0.29331895]
[1743899497011,0.29322672,593.75,592.79,0.29331895]
[1743899498313,0.29322672,593.75,592.83,1.25898521]
[1743899498610,0.33684777,593.74,592.83,1.25898521]
[1743899501916,0.33684777,593.74,592.65,0.3374673]
[1743899503315,0.758,593.73,592.65,0.3374673]
[1743899503616,0.33685912,593.72,592.65,0.3374673]
[1743899505916,0.29333176,593.71,592.65,0.3374673]
[1743899506112,0.33687047,593.7,592.65,0.3374673]
[1743899508716,0.30988145,593.69,592.66,0.29368831]
[1743899508923,0.33688182,593.68,592.66,0.29368831]
[1743899509122,0.30988145,593.67,592.66,0.29368831]
[1743899509323,0.33689317,593.66,592.66,0.29368831]
[1743899509524,0.30988145,593.65,592.66,0.29368831]
[1743899509724,0.33690452,593.64,592.66,0.29368831]
[1743899509921,0.30988145,593.63,592.66,0.29368831]
[1743899510119,0.33691587,593.62,592.65,0.3374673]
[1743899510323,0.33691587,593.62,592.66,0.29368204]
[1743899511829,0.29332063,593.61,592.66,0.29368204]
[1743899512029,0.33692722,593.6,592.66,0.29368204]
[1743899513530,0.33692722,593.6,592.65,0.3374673]
[1743899513729,0.33692722,593.6,592.66,0.29365989]
[1743899517935,0.29333052,593.59,592.66,0.29365989]
[1743899518733,0.63026341,593.59,592.66,0.29365989]
[1743899518933,0.63026341,593.59,592.65,0.3374673]
[1743899520633,0.33693289,593.59,592.65,0.3374673]
[1743899521037,0.29337256,593.58,592.65,0.3374673]
[1743899521229,0.29337256,593.58,592.66,0.2936581]
[1743899521432,0.29337256,593.58,592.65,0.3374673]
[1743899521630,0.29337256,593.58,592.66,0.29363816]
[1743899521834,0.29337256,593.58,592.67,0.29363727]
[1743899522037,0.29337256,593.58,592.66,0.29363727]
[1743899523435,0.29337256,593.58,592.65,0.3374673]
[1743899523637,0.33693289,593.59,592.66,0.29363396]
[1743899523837,0.2933973,593.57,592.66,0.29363396]
[1743899526534,0.33693289,593.59,592.66,0.29363396]
[1743899526738,0.33693289,593.59,592.65,0.3374673]
[1743899526940,0.29333547,593.56,592.66,0.29363646]
[1743899527440,0.29333547,593.56,592.65,0.3374673]
[1743899527738,0.29333547,593.56,592.66,0.29366135]
[1743899527935,0.29333547,593.56,592.65,0.3374673]
[1743899528841,0.29333547,593.56,592.66,0.29366691]
[1743899529042,0.606,593.55,592.66,0.29366691]
[1743899529842,0.29334041,593.54,592.66,0.29366691]
[1743899532641,0.606,593.55,592.67,0.29365818]
[1743899532945,0.606,593.55,592.65,0.3374673]
[1743899533147,0.29334041,593.54,592.65,0.3374673]
[1743899533340,0.29334041,593.54,592.66,0.29366368]
[1743899533645,0.29334041,593.54,592.65,0.3374673]
[1743899533844,0.29334041,593.54,592.66,0.29366588]
[1743899534143,0.595,593.53,592.66,0.29366588]
[1743899535946,0.29334289,593.52,592.66,0.29366588]
[1743899538645,0.595,593.53,592.66,0.29366588]
[1743899539046,0.29334289,593.51,592.66,0.29366588]
[1743899540545,0.29334289,593.51,592.65,0.3374673]
[1743899540745,0.29334289,593.51,592.66,0.29359489]
[1743899541646,0.595,593.53,592.66,0.29359489]
[1743899542149,0.29334289,593.5,592.66,0.29359489]
[1743899542749,0.595,593.53,592.65,0.3374673]
[1743899544448,0.595,593.53,592.66,0.29337645]
[1743899546249,0.595,593.53,592.65,0.3374673]
[1743899546449,0.595,593.53,592.66,0.29334986]
[1743899547348,0.595,593.53,592.65,0.3374673]
[1743899547648,0.595,593.53,592.66,0.29337115]
[1743899548148,0.595,593.53,592.65,0.3374673]
[1743899548551,0.595,593.53,592.66,0.29347156]
[1743899549248,0.595,593.53,592.65,0.3374673]
[1743899549447,0.595,593.53,592.66,0.29344956]
[1743899550950,0.595,593.53,592.65,0.3374673]
[1743899551150,0.754,593.52,592.66,0.29344312]
[1743899556157,0.754,593.52,592.65,0.3374673]
[1743899556357,0.754,593.52,592.66,0.2934447]
[1743899559953,0.29333671,593.51,592.66,0.2934447]
[1743899562260,0.29333671,593.51,592.65,0.3374673]
[1743899562562,0.754,593.52,592.65,0.3374673]
[1743899562764,0.754,593.52,592.66,0.29357299]
[1743899563063,0.29336638,593.51,592.65,0.3374673]
[1743899563361,0.29336638,593.51,592.66,0.29357283]
[1743899565265,0.528,593.5,592.66,0.29357283]
[1743899566059,0.29334412,593.49,592.66,0.29357283]
[1743899568766,0.528,593.5,592.66,0.29357283]
[1743899568967,0.2933466,593.48,592.67,0.29355082]
[1743899569166,0.2933466,593.48,592.66,0.29355082]
[1743899569360,0.2933466,593.48,592.65,0.3374673]
[1743899569561,0.2933466,593.48,592.66,0.29354972]
[1743899570070,0.2933466,593.48,592.67,0.29355518]
[1743899570264,0.2933466,593.48,592.66,0.29355518]
[1743899570468,0.2933466,593.48,592.65,0.3374673]
[1743899570767,0.2933466,593.48,592.66,0.29355572]
[1743899571577,0.528,593.5,592.66,0.29355572]
[1743899571875,0.2933466,593.47,592.66,0.29355572]
[1743899573976,0.2933466,593.47,592.65,0.3374673]